bitfinex/quotes_SOLUSD_20250717
["timestamp","ask_amount","ask_price","bid_price","bid_amount"]
[1752778673003,0.72,174.77,174.76,6.24958803]
[1752778673401,0.78,174.79,174.76,6.24958803]
[1752778673594,0.78,174.79,174.74,6.40265729]
[1752778673904,0.78,174.79,174.77,6.24958803]
[1752778674801,0.06,174.79,174.77,6.24958803]
[1752778674998,0.72,174.78,174.77,6.24958803]
[1752778676936,0.06,174.79,174.77,6.24958803]
[1752778677102,0.78,174.79,174.77,6.24958803]
[1752778677300,0.78,174.79,174.77,11.97124754]
[1752778677619,0.06,174.79,174.78,6.24958803]
[1752778680020,0.78,174.79,174.78,6.24958803]
[1752778680203,0.78,174.79,174.76,6.24958803]
[1752778680614,0.06,174.79,174.76,6.24958803]
[1752778680804,0.06,174.79,174.77,6.24958803]
[1752778681117,0.78,174.79,174.77,6.24958803]
[1752778681919,0.78,174.79,174.76,5.72213321]
[1752778682221,0.78,174.79,174.77,6.24958803]
[1752778682400,30.22,174.79,174.77,6.24958803]
[1752778682719,29.5,174.79,174.78,6.24958803]
[1752778684018,29.5,174.79,174.78,12.65106646]
[1752778684218,0.06,174.79,174.78,12.65106646]
[1752778685011,0.06,174.79,174.78,11.97106646]
[1752778686104,0.06,174.79,174.78,12.65106646]
[1752778688811,1e-08,174.79,174.78,12.65106646]
[1752778689012,1e-08,174.8,174.78,44.90065449]
[1752778689215,1e-08,174.8,174.79,13.75129116]
[1752778689520,1e-08,174.8,174.79,7.50170313]
[1752778689715,0.03,174.82,174.81,26.0]
[1752778689902,0.03,174.82,174.81,31.72049653]
[1752778690102,0.03,174.82,174.81,32.40049653]
[1752778690712,0.03,174.82,174.81,38.65008456]
[1752778692422,0.03,174.82,174.81,5.72049653]
[1752778692614,0.03,174.82,174.81,12.65008456]
[1752778696224,0.03,174.82,174.81,6.40049653]
[1752778696430,0.03,174.82,174.81,12.65008456]
[1752778699319,0.03,174.82,174.81,38.65008456]
[1752778700245,0.03,174.82,174.81,37.97008456]
[1752778700411,0.72,174.82,174.81,5.72049653]
[1752778701033,0.72,174.82,174.78,40.30369607]
[1752778701327,0.03,174.82,174.8,6.24958803]
[1752778701541,0.69,174.81,174.8,6.24958803]
[1752778701734,0.03,174.82,174.8,6.24958803]
[1752778702633,0.03,174.82,174.79,11.97073912]
[1752778702939,0.69,174.81,174.79,11.97073912]
[1752778703238,0.03,174.82,174.79,11.97073912]
[1752778703530,0.72,174.82,174.79,11.97073912]
[1752778705326,0.72,174.82,174.8,6.24958803]
[1752778706034,0.03,174.82,174.8,6.24958803]
[1752778706626,0.72,174.82,174.8,6.24958803]
[1752778707355,0.72,174.82,174.8,11.97031896]
[1752778709931,0.03,174.82,174.8,12.66031896]
[1752778710136,0.03,174.82,174.8,6.41073093]
[1752778710346,0.03,174.82,174.8,11.97031896]
[1752778712444,0.03,174.82,174.8,12.66031896]
[1752778712753,0.03,174.82,174.81,6.93958803]
[1752778714653,0.03,174.82,174.81,12.66008456]
[1752778715645,0.03,174.82,174.81,11.97008456]
[1752778716761,0.72,174.82,174.8,5.72082379]
[1752778716929,0.03,174.82,174.8,5.72082379]
[1752778717128,0.03,174.82,174.8,11.97041182]
[1752778717441,0.03,174.82,174.75,6.24958803]
[1752778717442,8.59148803,174.81,174.75,6.24958803]
[1752778717643,36.35958803,174.8,174.75,6.24958803]
[1752778717940,0.69,174.79,174.75,6.24958803]
[1752778718140,0.69,174.78,174.75,6.24958803]
[1752778718341,29.42,174.8,174.77,6.24958803]
[1752778718642,29.42,174.8,174.77,12.66114745]
[1752778719044,29.42,174.8,174.78,6.93958803]
[1752778719256,0.03,174.82,174.81,26.0]
[1752778719452,0.03,174.82,174.81,32.93958803]
[1752778720555,0.03,174.82,174.81,38.66008456]
[1752778736966,0.03,174.82,174.81,37.97008456]
[1752778737556,0.03,174.82,174.81,6.24958803]
[1752778738069,0.7,174.82,174.81,11.97008456]
[1752778738265,0.03,174.82,174.81,11.97008456]
[1752778739461,0.03,174.82,174.81,5.72049653]
[1752778739661,0.03,174.82,174.81,11.97008456]
[1752778740468,0.03,174.82,174.81,12.66008456]
[1752778740980,0.03,174.82,174.81,10.43588925]
[1752778742176,0.03,174.82,174.81,36.43588925]
[1752778742357,0.1,174.84,174.83,26.0]
[1752778742562,0.1,174.84,174.83,29.99539272]
[1752778742776,0.1,174.84,174.83,30.68539272]
[1752778742976,0.1,174.84,174.83,32.93011588]
[1752778743983,0.1,174.84,174.83,38.64995801]
[1752778744367,0.1,174.84,174.83,32.40984213]
[1752778744565,0.1,174.84,174.83,38.64995801]
[1752778748375,0.1,174.84,174.83,37.95995801]
[1752778748575,0.1,174.84,174.83,38.64995801]
[1752778749067,7.0607,174.84,174.81,0.03]
[1752778749267,0.67,174.83,174.81,0.03]
[1752778749868,6.3907,174.84,174.81,11.99051207]
[1752778750182,7.0607,174.84,174.82,6.24011588]
[1752778750682,6.3907,174.84,174.82,6.24011588]
[1752778750866,0.67,174.83,174.82,6.24011588]
[1752778751676,0.67,174.83,174.81,5.75039619]
[1752778751677,0.67,174.83,174.81,6.27011588]
[1752778752172,0.1,174.84,174.82,6.24011588]
[1752778752482,0.77,174.84,174.81,0.03]
[1752778752681,0.77,174.84,174.81,6.27011588]
[1752778752881,0.67,174.83,174.81,6.27011588]
[1752778754885,0.1,174.84,174.81,11.99051098]
[1752778755071,0.77,174.84,174.81,11.99051098]
[1752778756086,0.1,174.84,174.83,6.24011588]
[1752778760589,0.1,174.84,174.83,12.60995801]
[1752778760886,0.1,174.84,174.83,5.71984213]
[1752778761092,0.1,174.84,174.83,6.24011588]
[1752778762290,0.1,174.84,174.83,11.95995801]
[1752778762996,0.1,174.84,174.82,6.40007168]
[1752778763180,0.76,174.84,174.82,0.03]
[1752778763380,0.76,174.84,174.82,6.27011588]
[1752778763893,0.66,174.83,174.82,6.27011588]
[1752778764192,0.66,174.83,174.82,0.03]
[1752778764780,0.1,174.84,174.82,6.27011588]
[1752778764975,0.76,174.84,174.82,6.27011588]
[1752778765175,0.66,174.83,174.82,0.03]
[1752778766795,0.1,174.84,174.82,6.27011588]
[1752778767790,0.76,174.84,174.82,6.27011588]
[1752778769797,0.76,174.84,174.82,0.03]
[1752778770789,0.1,174.84,174.82,0.03]
[1752778771786,0.1,174.84,174.82,6.27011588]
[1752778772283,0.1,174.84,174.82,0.03]
[1752778772784,23.68479985,174.83,174.82,0.03]
[1752778772983,31.36789985,174.83,174.82,0.03]
[1752778773402,37.08774198,174.83,174.82,0.03]
[1752778773804,66.46774198,174.83,174.82,0.03]
[1752778775585,37.0631,174.83,174.82,0.03]
[1752778775784,35.5033,174.83,174.82,0.03]
[1752778776000,29.38,174.83,174.82,0.03]
[1752778782316,29.38,174.83,174.82,6.92011588]
[1752778784632,29.38,174.83,174.82,12.64028519]
[1752778785334,0.1,174.84,174.82,12.64028519]
[1752778785540,0.1,174.84,174.83,6.89011588]
[1752778785912,0.1,174.84,174.83,6.24011588]
[1752778786134,0.1,174.84,174.83,6.89011588]
[1752778786717,0.1,174.84,174.83,12.60995801]
[1752778793928,0.1,174.84,174.83,6.36984213]
[1752778794127,0.1,174.84,174.83,12.60995801]
[1752778801529,0.1,174.84,174.83,6.36984213]
[1752778801736,0.1,174.84,174.83,12.60995801]
[1752778803050,0.06,174.86,174.85,26.0]
[1752778803247,0.06,174.86,174.85,32.24011588]
[1752778803447,0.06,174.86,174.85,32.92011588]
[1752778804640,0.06,174.86,174.85,38.63930375]
[1752778808138,0.06,174.86,174.85,32.39918787]
[1752778808458,0.06,174.86,174.85,38.63930375]
[1752778811266,0.06,174.86,174.85,32.39918787]
[1752778811466,0.74,174.86,174.84,11.95936009]
[1752778811955,0.74,174.86,174.85,6.24011588]
[1752778811956,0.06,174.86,174.85,6.24011588]
[1752778812354,0.06,174.86,174.85,6.92011588]
[1752778812950,0.06,174.86,174.85,0.68]
[1752778813268,0.06,174.86,174.85,6.92011588]
[1752778813964,0.06,174.86,174.85,11.95930375]
[1752778814547,0.06,174.86,174.85,12.63930375]
[1752778817359,0.06,174.86,174.85,6.39918787]
[1752778817564,0.06,174.86,174.85,12.63930375]
[1752778817964,0.06,174.86,174.85,11.95930375]
[1752778821477,0.06,174.86,174.85,12.65930375]
[1752778823159,0.06,174.86,174.85,6.94011588]
[1752778823478,0.06,174.86,174.85,11.95930375]
[1752778823677,0.06,174.86,174.85,6.24011588]
[1752778825270,0.06,174.86,174.84,32.41929287]
[1752778825564,0.06,174.86,174.85,6.24011588]
[1752778827970,0.06,174.86,174.85,12.65930375]
[1752778828875,0.06,174.86,174.85,6.24011588]
[1752778830379,0.06,174.86,174.85,12.65930375]
[1752778831160,0.73,174.86,174.84,0.03]
[1752778831384,0.06,174.86,174.84,6.27011588]
[1752778831590,0.67,174.85,174.84,6.27011588]
[1752778831783,0.06,174.86,174.84,6.27011588]
[1752778832296,0.06,174.86,174.85,6.24011588]
[1752778832463,0.06,174.86,174.85,6.94011588]
[1752778833491,0.06,174.86,174.85,6.24011588]
[1752778834367,0.73,174.86,174.85,6.24011588]
[1752778834563,0.73,174.86,174.84,0.03]
[1752778835979,0.73,174.86,174.84,6.27011588]
[1752778836983,0.06,174.86,174.84,6.27011588]
[1752778837488,0.06,174.86,174.84,11.98959861]
[1752778839789,0.06,174.86,174.84,6.27011588]
[1752778839790,0.73,174.86,174.84,6.27011588]
[1752778840771,0.06,174.86,174.84,11.98961658]
[1752778840967,0.06,174.86,174.84,5.7495007]
[1752778841167,0.06,174.86,174.84,11.98961658]
[1752778842691,0.06,174.86,174.84,5.7495007]
[1752778842992,0.06,174.86,174.85,6.24011588]
[1752778845084,0.73,174.86,174.84,0.03]
[1752778845272,0.73,174.86,174.84,11.98957409]
[1752778845471,0.06,174.86,174.84,11.98957409]
[1752778847274,0.06,174.86,174.85,0.66]
[1752778847469,0.06,174.86,174.85,6.24011588]
[1752778847785,0.06,174.86,174.84,6.40945821]
[1752778847986,0.06,174.86,174.84,0.03]
[1752778848165,0.06,174.86,174.84,6.27011588]
[1752778848362,0.73,174.86,174.84,6.27011588]
[1752778848583,0.73,174.86,174.84,6.24011588]
[1752778848772,0.06,174.86,174.84,6.24011588]
[1752778849172,0.06,174.86,174.85,6.24011588]
[1752778849371,0.06,174.86,174.85,6.90011588]
[1752778849570,0.06,174.86,174.82,0.03]
[1752778849571,0.06,174.86,174.84,6.24011588]
[1752778849776,0.06,174.86,174.85,6.24011588]
[1752778851979,0.06,174.86,174.85,11.95930375]
[1752778852198,0.06,174.86,174.85,12.61930375]
[1752778852700,0.06,174.86,174.85,6.90011588]
[1752778854698,0.06,174.86,174.85,12.61930375]
[1752778861393,0.06,174.86,174.85,13.19122253]
[1752778861890,0.06,174.91,174.85,44.27387618]
[1752778862191,0.06,174.91,174.9,6.24011588]
[1752778862688,0.06,174.91,174.9,6.90011588]
[1752778863599,0.06,174.91,174.9,6.37755288]
[1752778863797,0.06,174.91,174.9,12.61766876]
[1752778868532,0.06,174.91,174.9,18.85778464]
[1752778870824,0.06,174.91,174.9,12.61766876]
[1752778872606,0.06,174.91,174.9,11.95766876]
[1752778873709,0.06,174.91,174.9,12.61766876]
[1752778879635,0.06,174.91,174.9,11.95766876]
[1752778879947,0.06,174.91,174.9,12.64766876]
[1752778884044,0.78,174.91,174.89,11.95788643]
[1752778886140,0.06,174.91,174.88,0.69]
[1752778886341,0.72,174.9,174.89,6.24011588]
[1752778886548,0.72,174.9,174.88,6.24011588]
[1752778886838,0.72,174.9,174.87,32.24011588]
[1752778887534,0.72,174.9,174.87,37.9583433]
[1752778888653,0.06,174.91,174.86,11.98885996]
[1752778888654,0.72,174.89,174.86,11.98885996]
[1752778889069,0.72,174.88,174.86,11.98885996]
[1752778889960,30.02,174.9,174.87,6.24011588]
[1752778890840,30.02,174.9,174.88,6.24011588]
[1752778891151,29.3,174.9,174.89,6.24011588]
[1752778891544,0.06,174.91,174.89,6.24011588]
[1752778891861,0.06,174.91,174.9,6.93011588]
[1752778892062,0.06,174.91,174.9,12.64766876]
[1752778893142,0.06,174.91,174.9,11.95766876]
[1752778893344,0.06,174.91,174.9,6.24011588]
[1752778894942,0.78,174.91,174.88,5.7181343]
[1752778895144,0.78,174.91,174.88,11.95825018]
[1752778895352,0.78,174.91,174.88,5.7181343]
[1752778895556,0.78,174.91,174.88,11.95825018]
[1752778895770,0.78,174.91,174.88,6.24011588]
[1752778895945,0.78,174.91,174.89,6.24011588]
[1752778896147,0.78,174.91,174.88,6.24011588]
[1752778896858,0.06,174.91,174.88,6.24011588]
[1752778897061,0.06,174.91,174.89,6.93011588]
[1752778897640,0.06,174.91,174.89,6.24011588]
[1752778899170,0.06,174.91,174.89,11.95797988]
[1752778900866,0.78,174.91,174.89,6.24011588]
[1752778901172,0.78,174.91,174.88,11.95832265]
[1752778902769,0.78,174.91,174.89,6.24011588]
[1752778905461,0.78,174.91,174.88,5.71820677]
[1752778905673,0.78,174.91,174.87,6.24011588]
[1752778905980,0.72,174.9,174.88,6.24011588]
[1752778908274,0.72,174.9,174.87,11.95863438]
[1752778908580,0.67,174.89,174.87,6.24011588]
[1752778910176,29.3,174.9,174.87,6.24011588]
[1752778910474,29.3,174.9,174.88,6.90011588]
[1752778911277,29.3,174.9,174.88,6.24011588]
[1752778912173,29.97,174.9,174.88,6.24011588]
[1752778912353,29.3,174.9,174.88,6.24011588]
[1752778914785,29.3,174.9,174.87,6.37848723]
[1752778914977,29.3,174.9,174.88,6.24011588]
[1752778916087,29.3,174.9,174.89,6.24011588]
[1752778916470,29.3,174.9,174.88,6.90011588]
[1752778916870,29.36,174.9,174.88,6.90011588]
[1752778917677,29.36,174.9,174.89,6.90011588]
[1752778917983,29.36,174.9,174.89,6.24011588]
[1752778918375,0.06,174.9,174.89,6.24011588]
[1752778919082,0.06,174.9,174.89,12.61799569]
[1752778920390,0.06,174.9,174.89,6.24011588]
[1752778921082,0.73,174.9,174.87,5.71840469]
[1752778921278,0.67,174.89,174.87,5.71840469]
[1752778921474,0.06,174.9,174.88,6.24011588]
[1752778922380,0.06,174.9,174.89,6.90011588]
[1752778922780,0.06,174.9,174.89,0.66]
[1752778922978,0.06,174.9,174.89,6.90011588]
[1752778924389,0.06,174.9,174.89,12.61799569]
[1752778935109,1e-08,174.9,174.89,44.85811157]
[1752778935406,0.06,174.93,174.92,26.0]
[1752778935581,0.06,174.93,174.92,32.24011588]
[1752778935783,0.06,174.93,174.92,32.90011588]
[1752778936496,0.06,174.93,174.92,32.37689915]
[1752778936698,0.06,174.93,174.92,38.61701503]
[1752778939486,0.06,174.93,174.92,37.95701503]
[1752778939888,0.78,174.93,174.91,5.71711516]
[1752778940289,0.78,174.93,174.91,11.95723104]
[1752778940687,0.06,174.93,174.91,11.95723104]
[1752778941714,0.06,174.93,174.91,5.71711516]
[1752778941892,0.78,174.93,174.91,11.95723104]
[1752778942701,0.06,174.93,174.91,11.95723104]
[1752778943106,0.06,174.93,174.92,6.24011588]
[1752778943306,0.06,174.93,174.92,6.93011588]
[1752778945004,0.06,174.93,174.92,11.14701503]
[1752778952435,0.06,174.93,174.92,0.69]
[1752778952609,0.06,174.93,174.91,11.95734188]
[1752778953204,0.06,174.93,174.92,6.24011588]
[1752778953423,0.06,174.93,174.91,6.407226]
[1752778953632,0.06,174.93,174.92,6.24011588]
[1752778954141,0.06,174.93,174.91,6.407226]
[1752778954648,0.06,174.93,174.92,11.95701503]
[1752778956311,0.06,174.93,174.92,12.64701503]
[1752778956848,0.06,174.93,174.92,38.64701503]
[1752778958840,0.06,174.93,174.92,32.40689915]
[1752778959039,0.06,174.93,174.92,38.64701503]
[1752778964248,0.06,174.93,174.92,32.40689915]
[1752778964447,0.06,174.93,174.92,38.64701503]
[1752778968241,0.06,174.93,174.92,37.95701503]
[1752778970948,0.06,174.93,174.92,11.95701503]
[1752778971958,0.06,174.93,174.92,5.71689915]
[1752778976547,0.06,174.93,174.92,11.95701503]
[1752778976751,0.06,174.93,174.92,12.63701503]
[1752778978757,0.06,174.93,174.92,6.39689915]
[1752778980555,0.06,174.93,174.92,12.63701503]
[1752778983060,0.06,174.93,174.92,10.38867956]
[1752778983660,0.06,174.93,174.92,6.39689915]
[1752778983870,0.06,174.93,174.92,10.38867956]
[1752778984076,0.06,174.93,174.92,9.70867956]
[1752778984764,0.06,174.93,174.92,5.71689915]
[1752778986388,0.06,174.93,174.92,10.38867956]
[1752779000571,0.06,175.0,174.92,51.25261735]
[1752779000768,0.06,175.0,174.98,3.99178041]
[1752779001081,0.06,175.0,174.97,3.99178041]
[1752779001284,0.77,175.0,174.98,5.71493885]
[1752779004210,0.71,174.99,174.97,5.71526547]
[1752779004997,0.77,175.0,174.97,5.71526547]
[1752779005214,0.06,175.0,174.97,5.71526547]
[1752779005412,0.71,174.99,174.97,5.71526547]
[1752779008299,0.77,175.0,174.97,5.71526547]
[1752779008600,0.71,174.99,174.97,5.71526547]
[1752779009318,0.71,174.99,174.96,5.71559213]
[1752779009517,4.05178041,175.0,174.97,0.69]
[1752779009518,0.06,175.0,174.97,0.69]
[1752779009710,0.06,175.0,174.97,4.68178041]
[1752779010019,0.06,175.0,174.98,0.69]
[1752779010332,0.06,175.0,174.97,4.68178041]
[1752779010818,0.77,175.0,174.96,10.39737254]
[1752779011620,0.77,175.0,174.96,9.70737254]
[1752779011823,0.77,175.0,174.96,10.39737254]
[1752779012494,4.76178041,175.0,174.96,6.40559213]
[1752779013325,4.76178041,175.0,174.96,10.39737254]
[1752779013326,0.77,175.0,174.96,10.39737254]
[1752779014205,0.71,174.99,174.96,6.40559213]
[1752779014420,4.05178041,175.0,174.96,6.40559213]
[1752779014628,4.76178041,175.0,174.96,6.40559213]
[1752779014805,0.77,175.0,174.96,10.39737254]
[1752779016022,0.77,175.0,174.96,6.40559213]
[1752779017730,4.76178041,175.0,174.96,5.71559213]
[1752779017919,4.70178041,174.99,174.95,5.71591883]
[1752779018108,0.71,174.98,174.95,5.71591883]
[1752779018313,0.71,174.97,174.94,6.40613399]
[1752779018721,0.71,174.96,174.93,5.71646391]
[1752779019232,0.71,174.96,174.93,6.40646391]
[1752779019728,4.70178041,174.97,174.93,6.40646391]
[1752779020549,31.5226,174.99,174.94,0.69]
[1752779020842,29.22,174.99,174.94,4.68178041]
[1752779021007,29.22,174.99,174.95,0.69]
[1752779021209,29.22,174.99,174.94,3.99178041]
[1752779021409,29.93,174.99,174.96,0.69]
[1752779021822,29.93,174.99,174.96,6.40553959]
[1752779022609,29.22,174.99,174.96,6.40553959]
[1752779022810,29.22,174.99,174.97,0.69]
[1752779023436,0.06,175.0,174.98,0.69]
[1752779024624,0.06,175.0,174.97,6.40506669]
[1752779025415,0.06,175.0,174.97,5.71506669]
[1752779025721,0.06,175.0,174.98,0.69]
[1752779026124,0.06,175.0,174.98,6.40481279]
[1752779033039,0.06,175.0,174.98,0.69]
[1752779034046,0.06,175.0,174.98,6.40491643]
[1752779036744,0.06,175.0,174.99,0.65]
[1752779036949,0.06,175.0,174.98,3.99178041]
[1752779036950,0.06,175.0,174.98,0.65]
[1752779037746,0.06,175.0,174.98,6.3648525]
[1752779038146,0.06,175.0,174.99,0.65]
[1752779038540,0.06,175.0,174.97,5.71519517]
[1752779038753,0.06,175.0,174.98,0.65]
[1752779041642,0.06,175.0,174.98,6.36485368]
[1752779042455,0.06,175.0,174.98,0.65]
[1752779043757,0.06,175.0,174.98,6.36492996]
[1752779043940,0.06,175.0,174.99,0.65]
[1752779044747,0.06,175.0,174.98,6.36492996]
[1752779045152,0.06,175.0,174.99,0.65]
[1752779046949,0.06,175.0,174.98,0.65]
[1752779048476,0.06,175.0,174.98,6.36491364]
[1752779048652,0.06,175.0,174.99,0.65]
[1752779050339,0.06,175.0,174.99,6.36461226]
[1752779051163,0.06,175.0,174.99,4.64178041]
[1752779052050,0.06,175.0,174.99,10.35639267]
[1752779054447,0.06,175.0,174.99,6.36461226]
[1752779055766,0.06,175.0,174.99,10.35639267]
[1752779067575,0.06,175.0,174.99,36.35639267]
[1752779068272,0.06,175.0,174.99,36.92785389]
[1752779068965,0.06,175.0,174.99,36.35639267]
[1752779071676,1e-08,175.0,174.99,36.35639267]
[1752779071875,1e-08,175.0,174.99,36.92785389]
[1752779072977,1e-08,175.0,174.99,10.92785389]
[1752779077374,1e-08,175.0,174.99,43.6796595]
[1752779079380,0.06,175.07,175.06,3.99178041]
[1752779079564,0.06,175.07,175.06,29.2]
[1752779079768,0.06,175.07,175.06,33.87178041]
[1752779080376,0.06,175.07,175.06,39.58410761]
[1752779080584,0.06,175.07,175.06,38.90410761]
[1752779080776,0.06,175.07,175.06,39.58410761]
[1752779081686,0.06,175.07,175.06,34.9123272]
[1752779082272,0.06,175.07,175.06,38.90410761]
[1752779082594,0.06,175.07,175.06,39.58410761]
[1752779085093,0.06,175.07,175.06,35.5923272]
[1752779085274,0.06,175.07,175.06,39.58410761]
[1752779085475,0.06,175.07,175.06,35.5923272]
[1752779085678,0.06,175.07,175.06,39.58410761]
[1752779087896,0.06,175.07,175.06,10.38410761]
[1752779088101,0.06,175.07,175.06,39.58410761]
[1752779088982,0.06,175.07,175.06,10.38410761]
[1752779089201,0.06,175.07,175.06,39.58410761]
[1752779091678,0.06,175.07,175.06,35.5923272]
[1752779092195,0.06,175.07,175.06,10.38410761]
[1752779092399,0.06,175.07,175.06,38.88410761]
[1752779093397,0.73,175.07,175.05,29.2]
[1752779093590,0.73,175.07,175.03,9.70476426]
[1752779093790,0.73,175.07,175.04,29.2]
[1752779093997,0.73,175.07,175.04,34.91297476]
[1752779094400,0.73,175.07,175.04,38.90475517]
[1752779094795,0.06,175.07,175.05,3.99178041]
[1752779095000,0.06,175.07,175.06,33.19178041]
[1752779095398,0.06,175.07,175.06,33.88178041]
[1752779095904,0.06,175.07,175.06,39.59410761]
[1752779097102,0.06,175.07,175.06,41.82777923]
[1752779097302,0.06,175.07,175.06,67.82777923]
[1752779100097,0.06,175.07,175.06,61.6023272]
[1752779100294,0.06,175.07,175.06,60.9123272]
[1752779100499,0.06,175.07,175.06,67.82777923]
[1752779104304,0.06,175.07,175.06,31.7123272]
[1752779104513,0.06,175.07,175.06,67.17777923]
[1752779104697,0.06,175.07,175.06,37.93777923]
[1752779105014,0.06,175.07,175.06,67.86777923]
[1752779105907,0.73,175.07,175.04,5.71297989]
[1752779106109,0.67,175.06,175.04,11.93843192]
[1752779106297,0.06,175.07,175.05,29.24]
[1752779106701,0.06,175.07,175.05,6.22545203]
[1752779107001,0.73,175.07,175.05,35.46545203]
[1752779107506,0.67,175.06,175.05,35.46545203]
[1752779108016,0.67,175.06,175.05,41.17810555]
[1752779108214,0.06,175.07,175.05,41.17810555]
[1752779108423,0.73,175.07,175.06,6.22545203]
[1752779108620,0.73,175.07,175.05,41.17810555]
[1752779108927,0.73,175.07,175.06,6.22545203]
[1752779109124,0.06,175.07,175.06,11.93777923]
[1752779109332,0.06,175.07,175.06,12.62777923]
[1752779110233,0.06,175.07,175.06,11.93777923]
[1752779111228,0.73,175.07,175.06,5.7123272]
[1752779111433,0.73,175.07,175.05,35.48545203]
[1752779111734,0.06,175.07,175.05,35.48545203]
[1752779112033,0.06,175.07,175.06,6.22545203]
[1752779112227,0.06,175.07,175.05,29.26]
[1752779112436,0.06,175.07,175.06,6.22545203]
[1752779112931,0.73,175.07,175.05,35.48545203]
[1752779113108,0.73,175.07,175.05,41.19794517]
[1752779113306,0.73,175.07,175.05,11.93794517]
[1752779113539,0.73,175.07,175.05,41.17794517]
[1752779113836,0.06,175.07,175.05,41.17794517]
[1752779114350,0.73,175.07,175.05,41.17794517]
[1752779114639,0.73,175.07,175.05,34.95249314]
[1752779114820,0.67,175.06,175.05,41.17810555]
[1752779115015,0.06,175.07,175.05,41.17810555]
[1752779115215,0.06,175.07,175.06,6.22545203]
[1752779116842,0.73,175.07,175.06,6.22545203]
[1752779117643,0.73,175.07,175.05,34.95265352]
[1752779117870,0.73,175.07,175.06,6.22545203]
[1752779118516,0.06,175.07,175.06,6.22545203]
[1752779119028,0.06,175.07,175.06,11.93777923]
[1752779123361,0.74,175.07,175.04,6.22545203]
[1752779123560,0.74,175.07,175.04,29.3]
[1752779123762,0.68,175.06,175.05,6.22545203]
[1752779124160,0.74,175.07,175.05,6.22545203]
[1752779124363,0.74,175.07,175.04,6.22545203]
[1752779124757,0.74,175.07,175.05,6.22545203]
[1752779124959,0.74,175.07,175.04,5.71297989]
[1752779125266,0.74,175.07,175.05,6.22545203]
[1752779125267,0.68,175.06,175.05,6.22545203]
[1752779125464,0.74,175.07,175.05,6.22545203]
[1752779127850,0.68,175.06,175.05,6.22545203]
[1752779128456,0.06,175.07,175.05,6.22545203]
[1752779129469,0.06,175.07,175.06,6.94545203]
[1752779129866,0.06,175.07,175.06,11.93777923]
[1752779131355,0.06,175.07,175.06,12.65777923]
[1752779131556,0.06,175.07,175.06,41.95777923]
[1752779132565,0.06,175.07,175.06,35.0323272]
[1752779132749,0.06,175.07,175.06,41.25777923]
[1752779134078,0.06,175.07,175.06,41.97777923]
[1752779135766,0.06,175.07,175.06,35.7523272]
[1752779135971,0.06,175.07,175.06,41.97777923]
[1752779137783,0.06,175.07,175.03,14.28301778]
[1752779137957,0.74,175.07,175.06,6.22545203]
[1752779138275,0.06,175.07,175.06,6.22545203]
[1752779138870,0.06,175.07,175.06,11.93777923]
[1752779139075,0.06,175.07,175.06,12.65777923]
[1752779141374,0.06,175.07,175.06,11.93777923]
[1752779142564,0.06,175.07,175.06,12.65777923]
[1752779145465,0.06,175.07,175.06,6.4323272]
[1752779145673,0.06,175.07,175.06,35.0323272]
[1752779145877,0.06,175.07,175.06,41.25777923]
[1752779147075,0.06,175.07,175.06,41.97777923]